[Event "Live Chess"]
[Site "Chess.com"]
[Date "2023.05.20"]
[Round "-"]
[White "BJAW87"]
[Black "smoggyrabbit"]
[Result "0-1"]
[WhiteElo "1435"]
[BlackElo "1706"]
[TimeControl "300"]
[EndTime "14:38:16 PDT"]
[Termination "smoggyrabbit won by checkmate"]

1. e4 {[%clk 0:04:59]} 1... e6 {[%clk 0:04:59.2]} 2. d4 {[%clk 0:04:58.1]} 2...
d5 {[%clk 0:04:58.1]} 3. exd5 {[%clk 0:04:57.5]} 3... exd5 {[%clk 0:04:57.5]} 4.
Nf3 {[%clk 0:04:56.8]} 4... Bd6 {[%clk 0:04:56.2]} 5. Nc3 {[%clk 0:04:52.9]}
5... c6 {[%clk 0:04:53.8]} 6. Bd3 {[%clk 0:04:51.3]} 6... Ne7 {[%clk 0:04:52.8]}
7. O-O {[%clk 0:04:50.5]} 7... O-O {[%clk 0:04:52]} 8. Re1 {[%clk 0:04:49.8]}
8... Bf5 {[%clk 0:04:50.4]} 9. Rxe7 {[%clk 0:04:39.1]} 9... Bxd3 {[%clk
0:04:47.9]} 10. Rxb7 {[%clk 0:04:37.1]} 10... Qc8 {[%clk 0:04:36.7]} 11. Rb3
{[%clk 0:04:28.6]} 11... Bc4 {[%clk 0:04:35.3]} 12. Rxb8 {[%clk 0:04:19.7]}
12... Rxb8 {[%clk 0:04:32.2]} 13. b3 {[%clk 0:04:18.4]} 13... Ba6 {[%clk
0:04:30.5]} 14. Ne5 {[%clk 0:04:06.2]} 14... Bxe5 {[%clk 0:04:22.8]} 15. dxe5
{[%clk 0:04:06.1]} 15... Qf5 {[%clk 0:04:20.3]} 16. f4 {[%clk 0:03:53.8]} 16...
Rbd8 {[%clk 0:04:09.2]} 17. g4 {[%clk 0:03:49.1]} 17... Qe6 {[%clk 0:04:03.3]}
18. Qf3 {[%clk 0:03:42.6]} 18... d4 {[%clk 0:03:57.2]} 19. Ne4 {[%clk
0:03:38.3]} 19... Qd5 {[%clk 0:03:46.4]} 20. Bb2 {[%clk 0:03:26.2]} 20... d3
{[%clk 0:03:40.8]} 21. Rd1 {[%clk 0:03:21.4]} 21... Qb5 {[%clk 0:03:13.7]} 22.
cxd3 {[%clk 0:03:09.7]} 22... Rxd3 {[%clk 0:03:11.1]} 23. Rxd3 {[%clk
0:02:56.6]} 23... Qxd3 {[%clk 0:03:09.8]} 24. Qxd3 {[%clk 0:02:56.5]} 24... Bxd3
{[%clk 0:03:09.4]} 25. Nc5 {[%clk 0:02:44.6]} 25... Bb1 {[%clk 0:03:05.4]} 26.
a3 {[%clk 0:02:41.6]} 26... Rd8 {[%clk 0:03:03.3]} 27. Bc3 {[%clk 0:02:18.4]}
27... Rd5 {[%clk 0:02:58.3]} 28. Na6 {[%clk 0:02:08.4]} 28... Rd3 {[%clk
0:02:52.7]} 29. Bb4 {[%clk 0:02:02.6]} 29... Rxb3 {[%clk 0:02:46.3]} 30. Nc5
{[%clk 0:01:55.9]} 30... Rf3 {[%clk 0:02:38.1]} 31. f5 {[%clk 0:01:50.7]} 31...
Re3 {[%clk 0:01:23.1]} 32. e6 {[%clk 0:01:46.8]} 32... fxe6 {[%clk 0:01:21.7]}
33. Nxe6 {[%clk 0:01:45.4]} 33... Re4 {[%clk 0:01:11.8]} 34. h3 {[%clk
0:01:38.5]} 34... Re3 {[%clk 0:00:59]} 35. Kg2 {[%clk 0:01:36]} 35... Ba2 {[%clk
0:00:46.2]} 36. Nd8 {[%clk 0:01:33.2]} 36... Bd5+ {[%clk 0:00:42.2]} 37. Kh2
{[%clk 0:01:30.3]} 37... a5 {[%clk 0:00:19.1]} 38. Bc5 {[%clk 0:01:18.5]} 38...
Rc3 {[%clk 0:00:18]} 39. Be7 {[%clk 0:01:12.1]} 39... Re3 {[%clk 0:00:15.5]} 40.
Bd6 {[%clk 0:01:10.4]} 40... Re2+ {[%clk 0:00:14]} 41. Kg3 {[%clk 0:01:09.3]}
41... h6 {[%clk 0:00:12.2]} 42. Nb7 {[%clk 0:00:55.5]} 42... Re3+ {[%clk
0:00:10.1]} 43. Kh4 {[%clk 0:00:50.8]} 43... Bg2 {[%clk 0:00:08.8]} 44. Bg3
{[%clk 0:00:41.5]} 44... Rxa3 {[%clk 0:00:07.8]} 45. Nd6 {[%clk 0:00:37.4]}
45... Rd3 {[%clk 0:00:06.8]} 46. Nc4 {[%clk 0:00:31.3]} 46... a4 {[%clk
0:00:06.1]} 47. Nb2 {[%clk 0:00:30.3]} 47... a3 {[%clk 0:00:05.5]} 48. Nxd3
{[%clk 0:00:29.3]} 48... a2 {[%clk 0:00:05]} 49. Be5 {[%clk 0:00:26.3]} 49...
a1=Q {[%clk 0:00:04.9]} 50. Bxa1 {[%clk 0:00:25.1]} 50... Be4 {[%clk 0:00:03.6]}
51. Nf4 {[%clk 0:00:23.6]} 51... Bf3 {[%clk 0:00:02.7]} 52. Ne6 {[%clk
0:00:19.7]} 52... Be4 {[%clk 0:00:02.6]} 53. Nc5 {[%clk 0:00:18.4]} 53... Bd5
{[%clk 0:00:02.5]} 54. Kh5 {[%clk 0:00:15.4]} 54... Bh1 {[%clk 0:00:02.4]} 55.
Kg6 {[%clk 0:00:14.2]} 55... Bd5 {[%clk 0:00:02.3]} 56. h4 {[%clk 0:00:13.5]}
56... Bf7# {[%clk 0:00:02.2]} 0-1

[Event "Live Chess"]
[Site "Chess.com"]
[Date "2023.05.20"]
[Round "-"]
[White "Tushinskiy"]
[Black "AttackingSnowLeopard"]
[Result "1/2-1/2"]
[WhiteElo "2138"]
[BlackElo "2114"]
[TimeControl "300"]
[EndTime "14:38:23 PDT"]
[Termination "Game drawn - insufficient material"]

1. d4 {[%clk 0:04:58.2]} 1... d5 {[%clk 0:04:58.8]} 2. c3 {[%clk 0:04:58.1]}
2... Nf6 {[%clk 0:04:56.7]} 3. Nf3 {[%clk 0:04:58]} 3... c6 {[%clk 0:04:55.9]}
4. Bf4 {[%clk 0:04:49.6]} 4... g6 {[%clk 0:04:54.7]} 5. Bg3 {[%clk 0:04:49.5]}
5... Bg7 {[%clk 0:04:53.1]} 6. Nbd2 {[%clk 0:04:49.4]} 6... O-O {[%clk
0:04:51.7]} 7. e3 {[%clk 0:04:48.9]} 7... Bf5 {[%clk 0:04:50.5]} 8. Be2 {[%clk
0:04:48]} 8... Nbd7 {[%clk 0:04:49.9]} 9. O-O {[%clk 0:04:47.5]} 9... Ne4 {[%clk
0:04:49.3]} 10. Nxe4 {[%clk 0:04:46.5]} 10... Bxe4 {[%clk 0:04:49.2]} 11. Bd3
{[%clk 0:04:43.9]} 11... Bxf3 {[%clk 0:04:47.4]} 12. Qxf3 {[%clk 0:04:43.3]}
12... e5 {[%clk 0:04:46.9]} 13. Bc2 {[%clk 0:04:40.8]} 13... e4 {[%clk
0:04:42.9]} 14. Qe2 {[%clk 0:04:39.7]} 14... f5 {[%clk 0:04:41.3]} 15. c4 {[%clk
0:04:38.9]} 15... Nf6 {[%clk 0:04:39.6]} 16. cxd5 {[%clk 0:04:37.5]} 16... cxd5
{[%clk 0:04:39.5]} 17. Bb3 {[%clk 0:04:36.9]} 17... Qd7 {[%clk 0:04:36.1]} 18.
Rac1 {[%clk 0:04:35.3]} 18... Rac8 {[%clk 0:04:35]} 19. h3 {[%clk 0:04:33.5]}
19... Nh5 {[%clk 0:04:33.4]} 20. Bh2 {[%clk 0:04:31.9]} 20... f4 {[%clk
0:04:32.6]} 21. exf4 {[%clk 0:04:26.5]} 21... Rxc1 {[%clk 0:04:26.3]} 22. Rxc1
{[%clk 0:04:24.6]} 22... Nxf4 {[%clk 0:04:25.5]} 23. Qxe4 {[%clk 0:04:22.2]}
23... Kh8 {[%clk 0:04:19.5]} 24. Qxf4 {[%clk 0:04:08.8]} 24... Rxf4 {[%clk
0:04:16.8]} 25. Bxf4 {[%clk 0:04:08.7]} 25... Bxd4 {[%clk 0:04:12.3]} 26. Rd1
{[%clk 0:04:02.9]} 26... Bxb2 {[%clk 0:04:09]} 27. Rxd5 {[%clk 0:04:01.6]} 27...
Qe7 {[%clk 0:04:04.9]} 28. Bh6 {[%clk 0:04:00]} 28... Qe1+ {[%clk 0:03:54.7]}
29. Kh2 {[%clk 0:03:55.9]} 29... Be5+ {[%clk 0:03:54]} 30. f4 {[%clk 0:03:53.5]}
30... Bf6 {[%clk 0:03:39.4]} 31. Rd6 {[%clk 0:03:40.3]} 31... Qe7 {[%clk
0:03:25.5]} 32. Re6 {[%clk 0:03:37.9]} 32... Qd8 {[%clk 0:03:25.1]} 33. Ba4
{[%clk 0:03:35.1]} 33... Be7 {[%clk 0:03:24.6]} 34. Bg5 {[%clk 0:03:32.8]} 34...
Bxg5 {[%clk 0:03:20.7]} 35. Re8+ {[%clk 0:03:30.4]} 35... Qxe8 {[%clk
0:03:19.4]} 36. Bxe8 {[%clk 0:03:30.3]} 36... Bxf4+ {[%clk 0:03:18.9]} 37. g3
{[%clk 0:03:29.5]} 37... Bc1 {[%clk 0:03:15.6]} 38. Kg2 {[%clk 0:03:28.3]} 38...
Kg7 {[%clk 0:03:13.7]} 39. Ba4 {[%clk 0:03:25.9]} 39... Kf6 {[%clk 0:03:12.8]}
40. Kf3 {[%clk 0:03:25.1]} 40... Ke5 {[%clk 0:03:12.3]} 41. Bb3 {[%clk
0:03:24.3]} 41... Kd4 {[%clk 0:03:10.7]} 42. Bg8 {[%clk 0:03:23.3]} 42... h6
{[%clk 0:03:08.6]} 43. Kg4 {[%clk 0:03:21.4]} 43... b5 {[%clk 0:03:03.6]} 44.
Bf7 {[%clk 0:03:20.7]} 44... g5 {[%clk 0:03:00.8]} 45. Kh5 {[%clk 0:03:20]}
45... a5 {[%clk 0:02:56.7]} 46. g4 {[%clk 0:03:19.1]} 46... a4 {[%clk
0:02:54.2]} 47. Be8 {[%clk 0:03:16.5]} 47... Kc5 {[%clk 0:02:50]} 48. Kxh6
{[%clk 0:03:15.6]} 48... Kb4 {[%clk 0:02:36.2]} 49. Kh5 {[%clk 0:03:13.5]} 49...
Ka3 {[%clk 0:02:22.8]} 50. Bxb5 {[%clk 0:03:12.6]} 50... Kxa2 {[%clk 0:02:22]}
51. Bxa4 {[%clk 0:03:11.8]} 51... Ka3 {[%clk 0:02:21.4]} 52. Bd7 {[%clk
0:03:08.4]} 52... Kb4 {[%clk 0:02:20.8]} 53. Bf5 {[%clk 0:03:06.5]} 53... Kc5
{[%clk 0:02:19.5]} 54. h4 {[%clk 0:03:06.1]} 54... gxh4 {[%clk 0:02:18.2]} 55.
Kxh4 {[%clk 0:03:05.3]} 55... Kd6 {[%clk 0:02:17.9]} 56. g5 {[%clk 0:03:03.9]}
56... Bxg5+ {[%clk 0:02:17]} 1/2-1/2

[Event "Live Chess"]
[Site "Chess.com"]
[Date "2023.05.20"]
[Round "-"]
[White "Ferrarifan27"]
[Black "Jonmill"]
[Result "1-0"]
[WhiteElo "2059"]
[BlackElo "1236"]
[TimeControl "300"]
[EndTime "14:38:24 PDT"]
[Termination "Ferrarifan27 won by resignation"]

1. e4 {[%clk 0:04:57.8]} 1... d6 {[%clk 0:04:57.3]} 2. d4 {[%clk 0:04:54.9]}
2... Nf6 {[%clk 0:04:56.7]} 3. Nc3 {[%clk 0:04:53.5]} 3... g6 {[%clk 0:04:52.6]}
4. Nf3 {[%clk 0:04:51.9]} 4... Bg7 {[%clk 0:04:52.1]} 5. Bg5 {[%clk 0:04:50.8]}
5... Nbd7 {[%clk 0:04:50.2]} 6. Qd2 {[%clk 0:04:50]} 6... e5 {[%clk 0:04:45.6]}
7. dxe5 {[%clk 0:04:47.3]} 7... dxe5 {[%clk 0:04:44.6]} 8. O-O-O {[%clk
0:04:45]} 8... O-O {[%clk 0:04:40.9]} 9. Nxe5 {[%clk 0:04:41.7]} 9... Qe8 {[%clk
0:03:49.8]} 10. Nxd7 {[%clk 0:04:38.6]} 10... Nxd7 {[%clk 0:03:44.7]} 11. f3
{[%clk 0:04:35.6]} 11... h6 {[%clk 0:03:43.3]} 12. Bxh6 {[%clk 0:04:33.4]} 1-0

[Event "Live Chess"]
[Site "Chess.com"]
[Date "2023.05.20"]
[Round "-"]
[White "HoarseyHorsey"]
[Black "ViktorTheCoolBoy"]
[Result "0-1"]
[WhiteElo "1404"]
[BlackElo "2513"]
[TimeControl "300"]
[EndTime "14:38:27 PDT"]
[Termination "ViktorTheCoolBoy won by resignation"]

1. d4 {[%clk 0:04:58.4]} 1... d5 {[%clk 0:04:59.1]} 2. c4 {[%clk 0:04:57.1]}
2... e6 {[%clk 0:04:55.5]} 3. Nc3 {[%clk 0:04:55.4]} 3... Nf6 {[%clk 0:04:50.5]}
4. cxd5 {[%clk 0:04:54.4]} 4... exd5 {[%clk 0:04:48.7]} 5. Bg5 {[%clk 0:04:53]}
5... c6 {[%clk 0:04:47.7]} 6. e3 {[%clk 0:04:51.4]} 6... Be6 {[%clk 0:04:44.7]}
7. Nf3 {[%clk 0:04:49.4]} 7... Nbd7 {[%clk 0:04:43]} 8. Bd3 {[%clk 0:04:32.7]}
8... h6 {[%clk 0:04:41.6]} 9. Bh4 {[%clk 0:04:31.6]} 9... Bd6 {[%clk 0:04:40.4]}
10. O-O {[%clk 0:04:27.6]} 10... O-O {[%clk 0:04:37.1]} 11. Re1 {[%clk
0:04:26.4]} 11... Qc7 {[%clk 0:04:35.5]} 12. Bg3 {[%clk 0:04:24.1]} 12... Bxg3
{[%clk 0:04:31.9]} 13. hxg3 {[%clk 0:04:24]} 13... Rfe8 {[%clk 0:04:28.7]} 14.
e4 {[%clk 0:04:19.4]} 14... dxe4 {[%clk 0:04:27.2]} 15. Nxe4 {[%clk 0:04:18.4]}
15... Bd5 {[%clk 0:04:25.2]} 16. Nxf6+ {[%clk 0:04:14.6]} 16... Nxf6 {[%clk
0:04:25.1]} 17. Ne5 {[%clk 0:04:08.1]} 17... Re7 {[%clk 0:04:20.4]} 18. Bf5
{[%clk 0:03:52.4]} 18... Rae8 {[%clk 0:04:18.1]} 19. Qd3 {[%clk 0:03:44.7]}
19... Qd6 {[%clk 0:04:03.4]} 20. Re2 {[%clk 0:03:35.6]} 20... Be6 {[%clk
0:03:59.2]} 21. Bxe6 {[%clk 0:03:27.5]} 21... Rxe6 {[%clk 0:03:59.1]} 22. Rae1
{[%clk 0:03:23.8]} 22... Qd5 {[%clk 0:03:57.1]} 23. a3 {[%clk 0:03:12.6]} 23...
c5 {[%clk 0:03:55.1]} 24. Rd2 {[%clk 0:03:00.4]} 24... cxd4 {[%clk 0:03:48.1]}
25. Rde2 {[%clk 0:02:54.4]} 25... Rxe5 {[%clk 0:03:46.4]} 26. Rxe5 {[%clk
0:02:52]} 26... Rxe5 {[%clk 0:03:46.3]} 27. Rxe5 {[%clk 0:02:49.2]} 27... Qxe5
{[%clk 0:03:46.2]} 28. f4 {[%clk 0:02:47.6]} 28... Qe3+ {[%clk 0:03:44.7]} 29.
Qxe3 {[%clk 0:02:46.2]} 29... dxe3 {[%clk 0:03:44.6]} 30. Kf1 {[%clk 0:02:45.6]}
30... Ng4 {[%clk 0:03:43.3]} 31. Ke2 {[%clk 0:02:43.8]} 31... f5 {[%clk
0:03:42.2]} 0-1

[Event "Live Chess"]
[Site "Chess.com"]
[Date "2023.05.20"]
[Round "-"]
[White "KGreenGator"]
[Black "parcellforce"]
[Result "0-1"]
[WhiteElo "1774"]
[BlackElo "1385"]
[TimeControl "300"]
[EndTime "14:38:51 PDT"]
[Termination "parcellforce won by checkmate"]

1. c4 {[%clk 0:04:58.7]} 1... g6 {[%clk 0:04:49.6]} 2. d4 {[%clk 0:04:57]} 2...
Bg7 {[%clk 0:04:49.3]} 3. Nc3 {[%clk 0:04:55.2]} 3... Nf6 {[%clk 0:04:49.1]} 4.
Nf3 {[%clk 0:04:54.2]} 4... d6 {[%clk 0:04:48.8]} 5. e4 {[%clk 0:04:53.3]} 5...
O-O {[%clk 0:04:39.3]} 6. Be2 {[%clk 0:04:51.5]} 6... Re8 {[%clk 0:04:36.7]} 7.
O-O {[%clk 0:04:50.6]} 7... e5 {[%clk 0:04:36.1]} 8. d5 {[%clk 0:04:49.2]} 8...
Nbd7 {[%clk 0:04:32.9]} 9. Re1 {[%clk 0:04:48]} 9... Nc5 {[%clk 0:04:32.3]} 10.
Bd3 {[%clk 0:04:46.3]} 10... Nxd3 {[%clk 0:04:31.4]} 11. Qxd3 {[%clk 0:04:45.3]}
11... b6 {[%clk 0:04:27.1]} 12. b4 {[%clk 0:04:43.8]} 12... Bb7 {[%clk
0:04:25.5]} 13. Bb2 {[%clk 0:04:41.4]} 13... Qe7 {[%clk 0:04:24.5]} 14. a4
{[%clk 0:04:39.1]} 14... a5 {[%clk 0:04:16.7]} 15. b5 {[%clk 0:04:37.8]} 15...
Qd7 {[%clk 0:04:06.3]} 16. Nd2 {[%clk 0:04:35.7]} 16... Qe7 {[%clk 0:04:05.4]}
17. Ne2 {[%clk 0:04:33.8]} 17... Nh5 {[%clk 0:04:05]} 18. Ng3 {[%clk 0:04:25.9]}
18... Nxg3 {[%clk 0:04:00.5]} 19. Qxg3 {[%clk 0:04:24.1]} 19... Rf8 {[%clk
0:03:57.3]} 20. h4 {[%clk 0:04:21.2]} 20... f5 {[%clk 0:03:56.2]} 21. exf5
{[%clk 0:04:17]} 21... Rxf5 {[%clk 0:03:56.1]} 22. Ne4 {[%clk 0:04:13.3]} 22...
Rh5 {[%clk 0:03:49.2]} 23. Re2 {[%clk 0:04:08.4]} 23... Qxh4 {[%clk 0:03:40.5]}
24. Qxh4 {[%clk 0:04:05.1]} 24... Rxh4 {[%clk 0:03:40.4]} 25. Ng5 {[%clk
0:04:02.1]} 25... Bc8 {[%clk 0:03:32.7]} 26. g3 {[%clk 0:03:59.5]} 26... Rg4
{[%clk 0:03:26.5]} 27. Nf3 {[%clk 0:03:53]} 27... Rxc4 {[%clk 0:03:23.8]} 28.
Nd2 {[%clk 0:03:41.9]} 28... Rc5 {[%clk 0:03:19.6]} 29. Nb3 {[%clk 0:03:30.3]}
29... Rxd5 {[%clk 0:03:15.6]} 30. Rd2 {[%clk 0:03:28.5]} 30... Rxd2 {[%clk
0:03:14.3]} 31. Nxd2 {[%clk 0:03:27.4]} 31... Bb7 {[%clk 0:03:14]} 32. Rc1
{[%clk 0:03:23.8]} 32... Rc8 {[%clk 0:03:09.6]} 33. f3 {[%clk 0:03:17.3]} 33...
Kf7 {[%clk 0:03:05.4]} 34. Kf2 {[%clk 0:03:15.7]} 34... Ke6 {[%clk 0:03:04.9]}
35. Ne4 {[%clk 0:03:13.6]} 35... Bh6 {[%clk 0:02:55.8]} 36. Rc2 {[%clk
0:03:09.5]} 36... Bxe4 {[%clk 0:02:52.2]} 37. fxe4 {[%clk 0:03:07.9]} 37... Kd7
{[%clk 0:02:51.8]} 38. Kf3 {[%clk 0:02:59.8]} 38... Rf8+ {[%clk 0:02:37.6]} 39.
Kg2 {[%clk 0:02:57.3]} 39... Be3 {[%clk 0:02:35.8]} 40. Re2 {[%clk 0:02:46.9]}
40... Bd4 {[%clk 0:02:33.3]} 41. Bxd4 {[%clk 0:02:44.9]} 41... exd4 {[%clk
0:02:33.2]} 42. Rd2 {[%clk 0:02:44]} 42... h5 {[%clk 0:02:19.9]} 43. Rxd4 {[%clk
0:02:42.5]} 43... Ke6 {[%clk 0:02:16.9]} 44. Rc4 {[%clk 0:02:39.2]} 44... Kd7
{[%clk 0:02:16.3]} 45. Kh3 {[%clk 0:02:36.1]} 45... g5 {[%clk 0:02:14.2]} 46. g4
{[%clk 0:02:33.9]} 46... h4 {[%clk 0:02:05.9]} 47. Kg2 {[%clk 0:02:29.8]} 47...
Rf4 {[%clk 0:02:02.7]} 48. Kh3 {[%clk 0:02:28.1]} 48... Rf3+ {[%clk 0:01:59]}
49. Kh2 {[%clk 0:02:25.6]} 49... Rg3 {[%clk 0:01:55.2]} 50. e5 {[%clk
0:02:22.9]} 50... dxe5 {[%clk 0:01:53.5]} 51. Re4 {[%clk 0:02:21.3]} 51... Kd6
{[%clk 0:01:50.6]} 52. Rc4 {[%clk 0:02:19.8]} 52... Rd3 {[%clk 0:01:36.6]} 53.
Rc6+ {[%clk 0:02:16.9]} 53... Kd7 {[%clk 0:01:35.3]} 54. Rc4 {[%clk 0:02:15.6]}
54... Rd4 {[%clk 0:01:33.6]} 55. Rc3 {[%clk 0:02:11.9]} 55... Rxg4 {[%clk
0:01:31.4]} 56. Kh3 {[%clk 0:02:08.6]} 56... Rg3+ {[%clk 0:01:30]} 57. Rxg3
{[%clk 0:02:06.7]} 57... hxg3 {[%clk 0:01:29.6]} 58. Kxg3 {[%clk 0:02:06.4]}
58... Ke6 {[%clk 0:01:29.1]} 59. Kg4 {[%clk 0:02:05.7]} 59... Kd5 {[%clk
0:01:28.6]} 60. Kf3 {[%clk 0:02:04.9]} 60... Kd4 {[%clk 0:01:28]} 61. Ke2 {[%clk
0:02:02.9]} 61... e4 {[%clk 0:01:26.9]} 62. Kf2 {[%clk 0:02:02.1]} 62... Kd3
{[%clk 0:01:26.2]} 63. Ke1 {[%clk 0:02:01.3]} 63... g4 {[%clk 0:01:24.8]} 64.
Kf2 {[%clk 0:02:00.5]} 64... Kd2 {[%clk 0:01:24.1]} 65. Kg3 {[%clk 0:01:59.3]}
65... e3 {[%clk 0:01:23.7]} 66. Kxg4 {[%clk 0:01:59.1]} 66... e2 {[%clk
0:01:23.1]} 67. Kf4 {[%clk 0:01:58.8]} 67... e1=Q {[%clk 0:01:22.1]} 68. Kf3
{[%clk 0:01:57.8]} 68... Qe3+ {[%clk 0:01:21.4]} 69. Kg4 {[%clk 0:01:56.8]}
69... Kd3 {[%clk 0:01:20.3]} 70. Kf5 {[%clk 0:01:56.2]} 70... Kd4 {[%clk
0:01:19.2]} 71. Kf6 {[%clk 0:01:56.1]} 71... Qe4 {[%clk 0:01:18.4]} 72. Kf7
{[%clk 0:01:55.9]} 72... Qe5 {[%clk 0:01:17.6]} 73. Kf8 {[%clk 0:01:55]} 73...
Kd5 {[%clk 0:01:13.6]} 74. Kf7 {[%clk 0:01:53.8]} 74... Qd6 {[%clk 0:01:12.2]}
75. Ke8 {[%clk 0:01:52.6]} 75... Ke5 {[%clk 0:00:58.3]} 76. Kf7 {[%clk
0:01:51.7]} 76... Qe6+ {[%clk 0:00:56.2]} 77. Kf8 {[%clk 0:01:49.1]} 77... Qd7
{[%clk 0:00:53.5]} 78. Kg8 {[%clk 0:01:47.5]} 78... Kf6 {[%clk 0:00:52.7]} 79.
Kh8 {[%clk 0:01:46.9]} 79... Qg7# {[%clk 0:00:49.9]} 0-1

[Event "Live Chess"]
[Site "Chess.com"]
[Date "2023.05.20"]
[Round "-"]
[White "Oleg_Silin"]
[Black "MaharerotheMagnificent"]
[Result "1-0"]
[WhiteElo "1481"]
[BlackElo "1478"]
[TimeControl "300"]
[EndTime "14:38:51 PDT"]
[Termination "Oleg_Silin won on time"]

1. c4 {[%clk 0:04:57.3]} 1... e5 {[%clk 0:04:54]} 2. Nc3 {[%clk 0:04:54.2]} 2...
Nc6 {[%clk 0:04:52]} 3. Nf3 {[%clk 0:04:53]} 3... Bb4 {[%clk 0:04:49]} 4. g3
{[%clk 0:04:49.5]} 4... Nf6 {[%clk 0:04:45.8]} 5. Bg2 {[%clk 0:04:44.8]} 5...
O-O {[%clk 0:04:42.7]} 6. d3 {[%clk 0:04:27]} 6... d5 {[%clk 0:04:33.8]} 7. cxd5
{[%clk 0:04:22.8]} 7... Nxd5 {[%clk 0:04:31.6]} 8. Bd2 {[%clk 0:04:21.7]} 8...
Be6 {[%clk 0:04:15.5]} 9. O-O {[%clk 0:04:18.7]} 9... Qd7 {[%clk 0:04:08.8]} 10.
a3 {[%clk 0:04:14.9]} 10... Nxc3 {[%clk 0:03:59.2]} 11. Bxc3 {[%clk 0:04:00.8]}
11... Bxc3 {[%clk 0:03:48.9]} 12. bxc3 {[%clk 0:04:00.7]} 12... Rad8 {[%clk
0:03:43.6]} 13. Qa4 {[%clk 0:03:56.5]} 13... Bh3 {[%clk 0:03:30]} 14. Rab1
{[%clk 0:03:43.4]} 14... Bxg2 {[%clk 0:03:27.6]} 15. Kxg2 {[%clk 0:03:43.3]}
15... b6 {[%clk 0:03:13.5]} 16. Rb2 {[%clk 0:03:31.7]} 16... Rfe8 {[%clk
0:03:10.7]} 17. Rfb1 {[%clk 0:03:27.6]} 17... Re6 {[%clk 0:03:03.6]} 18. Ng5
{[%clk 0:03:08.3]} 18... Rh6 {[%clk 0:02:54.3]} 19. h4 {[%clk 0:03:06.4]} 19...
f6 {[%clk 0:02:45.9]} 20. Ne4 {[%clk 0:02:56.1]} 20... Qe6 {[%clk 0:02:22.6]}
21. Qb3 {[%clk 0:02:53.3]} 21... Qxb3 {[%clk 0:02:12.9]} 22. Rxb3 {[%clk
0:02:53.2]} 22... Ne7 {[%clk 0:02:03.7]} 23. a4 {[%clk 0:02:48.8]} 23... c5
{[%clk 0:02:01.6]} 24. a5 {[%clk 0:02:44.5]} 24... Nf5 {[%clk 0:01:56.9]} 25.
axb6 {[%clk 0:02:39]} 25... Rg6 {[%clk 0:01:54.8]} 26. bxa7 {[%clk 0:02:33.2]}
26... Nxh4+ {[%clk 0:01:49.4]} 27. Kh3 {[%clk 0:02:26.4]} 27... Nf5 {[%clk
0:01:41.6]} 28. Rb8 {[%clk 0:02:22.6]} 1-0

[Event "Live Chess"]
[Site "Chess.com"]
[Date "2023.05.20"]
[Round "-"]
[White "Brooms1989"]
[Black "Richardallis"]
[Result "0-1"]
[WhiteElo "1055"]
[BlackElo "1908"]
[TimeControl "300"]
[EndTime "14:38:56 PDT"]
[Termination "Richardallis won by checkmate"]

1. e4 {[%clk 0:04:58]} 1... d5 {[%clk 0:04:58]} 2. exd5 {[%clk 0:04:56.2]} 2...
Nf6 {[%clk 0:04:57]} 3. Nc3 {[%clk 0:04:55.8]} 3... Nxd5 {[%clk 0:04:56]} 4. d4
{[%clk 0:04:55.3]} 4... c6 {[%clk 0:04:54.6]} 5. Nf3 {[%clk 0:04:52.8]} 5... Bg4
{[%clk 0:04:53.8]} 6. Be2 {[%clk 0:04:51]} 6... e6 {[%clk 0:04:53.2]} 7. Nxd5
{[%clk 0:04:49]} 7... cxd5 {[%clk 0:04:52.1]} 8. O-O {[%clk 0:04:47.9]} 8... Bd6
{[%clk 0:04:50]} 9. h3 {[%clk 0:04:46.4]} 9... Bxf3 {[%clk 0:04:48.4]} 10. Bxf3
{[%clk 0:04:45.7]} 10... Nc6 {[%clk 0:04:47.9]} 11. c3 {[%clk 0:04:43.9]} 11...
Rc8 {[%clk 0:04:47.1]} 12. Be3 {[%clk 0:04:33.3]} 12... Bb8 {[%clk 0:04:45.9]}
13. Qc2 {[%clk 0:04:29.4]} 13... Qd6 {[%clk 0:04:43]} 14. g3 {[%clk 0:04:26]}
14... Qe7 {[%clk 0:04:40.8]} 15. Kg2 {[%clk 0:04:22.2]} 15... O-O {[%clk
0:04:38.6]} 16. Bd1 {[%clk 0:04:09]} 16... f5 {[%clk 0:04:36.4]} 17. Qe2 {[%clk
0:04:06]} 17... f4 {[%clk 0:04:33]} 18. gxf4 {[%clk 0:03:59.3]} 18... Bxf4
{[%clk 0:04:32.4]} 19. Bxf4 {[%clk 0:03:57.6]} 19... Rxf4 {[%clk 0:04:32]} 20.
Qe3 {[%clk 0:03:52.4]} 20... Qg5+ {[%clk 0:04:29.9]} 21. Kh1 {[%clk 0:03:48.2]}
21... Qf5 {[%clk 0:04:27.6]} 22. Qg3 {[%clk 0:03:41]} 22... Rf8 {[%clk
0:04:24.2]} 23. Rg1 {[%clk 0:03:36]} 23... Rf7 {[%clk 0:04:21]} 24. Bg4 {[%clk
0:03:29.5]} 24... Qe4+ {[%clk 0:04:18.4]} 25. Kh2 {[%clk 0:03:20.6]} 25... Rxf2+
{[%clk 0:04:15.7]} 26. Qxf2 {[%clk 0:03:15.8]} 26... Rxf2+ {[%clk 0:04:12.7]}
27. Kg3 {[%clk 0:03:14.8]} 27... Qf4+ {[%clk 0:04:11.8]} 28. Kh4 {[%clk
0:03:13.3]} 28... g5+ {[%clk 0:03:59.6]} 29. Kh5 {[%clk 0:03:10.9]} 29... Qf6
{[%clk 0:03:59]} 30. Bxe6+ {[%clk 0:03:02.8]} 30... Qxe6 {[%clk 0:03:57]} 31.
Rxg5+ {[%clk 0:03:02.3]} 31... Kh8 {[%clk 0:03:56.4]} 32. Rag1 {[%clk
0:02:59.9]} 32... Qxh3# {[%clk 0:03:51.8]} 0-1

[Event "Live Chess"]
[Site "Chess.com"]
[Date "2023.05.20"]
[Round "-"]
[White "laminaaprod"]
[Black "Duke_of_Bebington"]
[Result "1-0"]
[WhiteElo "2279"]
[BlackElo "1573"]
[TimeControl "300"]
[EndTime "14:38:56 PDT"]
[Termination "laminaaprod won by resignation"]

1. d4 {[%clk 0:04:57.6]} 1... d5 {[%clk 0:04:58.1]} 2. c4 {[%clk 0:04:54.7]}
2... c6 {[%clk 0:04:56.9]} 3. Nf3 {[%clk 0:04:50.4]} 3... Nf6 {[%clk 0:04:55.2]}
4. g3 {[%clk 0:04:47]} 4... dxc4 {[%clk 0:04:50.3]} 5. Bg2 {[%clk 0:04:45.8]}
5... e6 {[%clk 0:04:47.1]} 6. O-O {[%clk 0:04:42.2]} 6... Bd6 {[%clk 0:04:45]}
7. a4 {[%clk 0:04:41.1]} 7... b5 {[%clk 0:04:38.8]} 8. axb5 {[%clk 0:04:25.3]}
8... Bb7 {[%clk 0:04:31.4]} 9. bxc6 {[%clk 0:03:28.9]} 9... Bxc6 {[%clk
0:04:24]} 10. Nbd2 {[%clk 0:03:07.4]} 10... Bd5 {[%clk 0:04:18.3]} 11. Qc2
{[%clk 0:03:03.4]} 11... Qc8 {[%clk 0:04:11.8]} 12. e4 {[%clk 0:02:59.8]} 1-0